[Event "Titled Tuesday Blitz March 15 Late 2022"]
[White "Shimanov, Aleksandr"]
[Black "Lazavik, Denis"]
[WhiteFideId "4198603"]
[BlackFideId "13515110"]
[WhiteElo "2897"]
[BlackElo "2966"]
[Result "1/2-1/2"]
[Round "07"]
[TimeControl "180+1"]
[Date "2022.03.15"]
[WhiteClock "0:00:05"]
[BlackClock "0:00:05"]

1. e4 {[%clk 0:02:59]}  e5 {[%clk 0:02:57]} 2. Nf3 {[%clk 0:02:51]}  Nc6 {[%clk 0:02:57]} 3. Nc3 {[%clk 0:02:51]}  Nf6 {[%clk 0:02:57]} 4. h3 {[%clk 0:02:51]}  d5 {[%clk 0:02:52]} 5. exd5 {[%clk 0:02:50]}  Nxd5 {[%clk 0:02:52]} 6. Bb5 {[%clk 0:02:51]}  Nxc3 {[%clk 0:02:53]} 7. bxc3 {[%clk 0:02:52]}  Bd6 {[%clk 0:02:53]} 8. O-O {[%clk 0:02:53]}  O-O {[%clk 0:02:53]} 9. Re1 {[%clk 0:02:53]}  Qf6 {[%clk 0:02:49]} 10. d4 {[%clk 0:02:46]}  exd4 {[%clk 0:02:49]} 11. cxd4 {[%clk 0:02:47]}  h6 {[%clk 0:02:49]} 12. Bb2 {[%clk 0:02:35]}  Ne7 {[%clk 0:02:37]} 13. Bd3 {[%clk 0:02:28]}  Bf5 {[%clk 0:02:36]} 14. c4 {[%clk 0:02:27]}  Bxd3 {[%clk 0:02:25]} 15. Qxd3 {[%clk 0:02:28]}  Ng6 {[%clk 0:02:25]} 16. g3 {[%clk 0:02:19]}  Rfe8 {[%clk 0:02:16]} 17. Kg2 {[%clk 0:02:18]}  Bf8 {[%clk 0:02:07]} 18. Qb3 {[%clk 0:02:13]}  b6 {[%clk 0:01:40]} 19. d5 {[%clk 0:02:06]}  Qf5 {[%clk 0:01:40]} 20. Qa4 {[%clk 0:01:38]}  Rxe1 {[%clk 0:01:31]} 21. Rxe1 {[%clk 0:01:38]}  Bc5 {[%clk 0:01:22]} 22. Qb3 {[%clk 0:01:06]}  Rd8 {[%clk 0:01:00]} 23. Qc3 {[%clk 0:01:04]}  f6 {[%clk 0:01:00]} 24. a4 {[%clk 0:00:56]}  Kh7 {[%clk 0:00:56]} 25. Nd4 {[%clk 0:00:33]}  Bxd4 {[%clk 0:00:55]} 26. Qxd4 {[%clk 0:00:34]}  c6 {[%clk 0:00:54]} 27. Rd1 {[%clk 0:00:29]}  cxd5 {[%clk 0:00:47]} 28. cxd5 {[%clk 0:00:30]}  Ne5 {[%clk 0:00:40]} 29. d6 {[%clk 0:00:25]}  Qf3+ {[%clk 0:00:37]} 30. Kg1 {[%clk 0:00:24]}  Rd7 {[%clk 0:00:26]} 31. Re1 {[%clk 0:00:16]}  Nd3 {[%clk 0:00:15]} 32. Re7 {[%clk 0:00:05]}  Rxd6 {[%clk 0:00:08]} 33. Qxd6 {[%clk 0:00:02]}  Qxf2+ {[%clk 0:00:09]} 34. Kh1 {[%clk 0:00:03]}  Qf3+ {[%clk 0:00:03]} 35. Kh2 {[%clk 0:00:03]}  Qf2+ {[%clk 0:00:04]} 36. Kh1 {[%clk 0:00:04]}  Qf3+ {[%clk 0:00:04]} 37. Kh2 {[%clk 0:00:04]}  Qf2+ {[%clk 0:00:05]} 38. Kh1 {[%clk 0:00:05]} 1/2-1/2


[Site "https://www.chess.com"]

[Event "Titled Tuesday Blitz March 15 Late 2022"]
[White "Solon, Nathan"]
[Black "Khanin, Semen"]
[WhiteFideId "2017229"]
[BlackFideId "4111990"]
[WhiteElo "2586"]
[BlackElo "2442"]
[Result "1/2-1/2"]
[Round "07"]
[TimeControl "180+1"]
[Date "2022.03.15"]
[WhiteClock "0:00:21"]
[BlackClock "0:00:10"]

1. d4 {[%clk 0:03:00]}  Nf6 {[%clk 0:02:59]} 2. Bg5 {[%clk 0:03:00]}  c5 {[%clk 0:02:58]} 3. Bxf6 {[%clk 0:03:00]}  exf6 {[%clk 0:02:58]} 4. Nc3 {[%clk 0:02:55]}  d5 {[%clk 0:02:51]} 5. dxc5 {[%clk 0:02:41]}  d4 {[%clk 0:02:51]} 6. Ne4 {[%clk 0:02:41]}  Nc6 {[%clk 0:02:48]} 7. Nf3 {[%clk 0:02:29]}  Bf5 {[%clk 0:02:48]} 8. Nd6+ {[%clk 0:02:29]}  Bxd6 {[%clk 0:02:48]} 9. cxd6 {[%clk 0:02:30]}  Qxd6 {[%clk 0:02:48]} 10. a3 {[%clk 0:02:26]}  O-O {[%clk 0:02:44]} 11. g3 {[%clk 0:02:25]}  Rfe8 {[%clk 0:02:42]} 12. Bg2 {[%clk 0:02:24]}  d3 {[%clk 0:02:42]} 13. cxd3 {[%clk 0:02:22]}  Bxd3 {[%clk 0:02:41]} 14. O-O {[%clk 0:02:15]}  Rxe2 {[%clk 0:02:34]} 15. Ne1 {[%clk 0:02:08]}  Rd8 {[%clk 0:02:33]} 16. Nxd3 {[%clk 0:01:59]}  Qxd3 {[%clk 0:02:33]} 17. Qxd3 {[%clk 0:01:47]}  Rxd3 {[%clk 0:02:33]} 18. Rfd1 {[%clk 0:01:42]}  Rxd1+ {[%clk 0:02:30]} 19. Rxd1 {[%clk 0:01:43]}  g6 {[%clk 0:02:21]} 20. b4 {[%clk 0:01:42]}  Ra2 {[%clk 0:02:08]} 21. Rd7 {[%clk 0:01:37]}  Ra1+ {[%clk 0:02:08]} 22. Bf1 {[%clk 0:01:36]}  Rxa3 {[%clk 0:01:43]} 23. Rxb7 {[%clk 0:01:34]}  Ne5 {[%clk 0:01:32]} 24. Kg2 {[%clk 0:01:31]}  g5 {[%clk 0:01:28]} 25. h3 {[%clk 0:01:27]}  h5 {[%clk 0:01:26]} 26. f4 {[%clk 0:01:15]}  gxf4 {[%clk 0:01:25]} 27. gxf4 {[%clk 0:01:16]}  Ng6 {[%clk 0:01:25]} 28. Bc4 {[%clk 0:01:08]}  Nxf4+ {[%clk 0:01:25]} 29. Kf1 {[%clk 0:01:06]}  Ne6 {[%clk 0:01:17]} 30. h4 {[%clk 0:01:06]}  Kf8 {[%clk 0:01:15]} 31. Be2 {[%clk 0:00:59]}  Nf4 {[%clk 0:00:46]} 32. Bc4 {[%clk 0:00:59]}  a5 {[%clk 0:00:19]} 33. b5 {[%clk 0:00:54]}  Ne6 {[%clk 0:00:18]} 34. b6 {[%clk 0:00:47]}  Ra1+ {[%clk 0:00:14]} 35. Kf2 {[%clk 0:00:45]}  Rb1 {[%clk 0:00:15]} 36. Be2 {[%clk 0:00:31]}  Nc5 {[%clk 0:00:12]} 37. Rc7 {[%clk 0:00:28]}  Ne4+ {[%clk 0:00:11]} 38. Ke3 {[%clk 0:00:29]}  Ng3 {[%clk 0:00:11]} 39. b7 {[%clk 0:00:26]}  Nxe2 {[%clk 0:00:11]} 40. Rc8+ {[%clk 0:00:22]}  Kg7 {[%clk 0:00:11]} 41. b8=Q {[%clk 0:00:23]}  Rxb8 {[%clk 0:00:11]} 42. Rxb8 {[%clk 0:00:24]}  Ng3 {[%clk 0:00:10]} 43. Rb5 {[%clk 0:00:21]}  Kg6 {[%clk 0:00:10]} 44. Kf4 {[%clk 0:00:20]}  Ne2+ {[%clk 0:00:10]} 45. Ke3 {[%clk 0:00:20]}  Ng3 {[%clk 0:00:10]} 46. Kf4 {[%clk 0:00:20]}  Ne2+ {[%clk 0:00:10]} 47. Ke3 {[%clk 0:00:21]}  Ng3 {[%clk 0:00:10]} 1/2-1/2


[Site "https://www.chess.com"]

[Event "Titled Tuesday Blitz March 15 Late 2022"]
[White "Swicarz, Maciej"]
[Black "Sochacki, Christophe"]
[WhiteFideId "1113585"]
[BlackFideId "662569"]
[WhiteElo "2057"]
[BlackElo "2480"]
[Result "0-1"]
[Round "07"]
[TimeControl "180+1"]
[Date "2022.03.16"]
[WhiteClock "0:00:02"]
[BlackClock "0:00:41"]

1. c4 {[%clk 0:02:14]}  e5 {[%clk 0:02:57]} 2. Nc3 {[%clk 0:02:14]}  Nc6 {[%clk 0:02:57]} 3. Nf3 {[%clk 0:02:13]}  Bc5 {[%clk 0:02:57]} 4. e3 {[%clk 0:02:10]}  d6 {[%clk 0:02:49]} 5. a3 {[%clk 0:02:07]}  a6 {[%clk 0:02:46]} 6. d4 {[%clk 0:02:05]}  Ba7 {[%clk 0:02:40]} 7. dxe5 {[%clk 0:02:03]}  Nxe5 {[%clk 0:02:36]} 8. Nxe5 {[%clk 0:02:01]}  dxe5 {[%clk 0:02:36]} 9. Qxd8+ {[%clk 0:02:00]}  Kxd8 {[%clk 0:02:37]} 10. b4 {[%clk 0:01:56]}  f6 {[%clk 0:02:31]} 11. Bb2 {[%clk 0:01:55]}  Be6 {[%clk 0:02:31]} 12. O-O-O+ {[%clk 0:01:51]}  Ke8 {[%clk 0:02:28]} 13. Nd5 {[%clk 0:01:50]}  Rc8 {[%clk 0:02:20]} 14. Be2 {[%clk 0:01:45]}  Ne7 {[%clk 0:01:39]} 15. Bf3 {[%clk 0:01:33]}  c6 {[%clk 0:01:39]} 16. Nxe7 {[%clk 0:01:32]}  Kxe7 {[%clk 0:01:40]} 17. c5 {[%clk 0:01:33]}  b6 {[%clk 0:01:39]} 18. cxb6 {[%clk 0:01:28]}  Bxb6 {[%clk 0:01:40]} 19. Kb1 {[%clk 0:01:20]}  c5 {[%clk 0:01:39]} 20. Bd5 {[%clk 0:01:13]}  Rb8 {[%clk 0:01:25]} 21. Bxe6 {[%clk 0:01:10]}  Kxe6 {[%clk 0:01:24]} 22. Rd2 {[%clk 0:01:08]}  cxb4 {[%clk 0:01:23]} 23. axb4 {[%clk 0:01:09]}  Rhd8 {[%clk 0:01:20]} 24. Rxd8 {[%clk 0:01:05]}  Bxd8 {[%clk 0:01:21]} 25. Bc3 {[%clk 0:00:35]}  a5 {[%clk 0:01:11]} 26. b5 {[%clk 0:00:30]}  Rxb5+ {[%clk 0:01:11]} 27. Kc2 {[%clk 0:00:30]}  Be7 {[%clk 0:01:08]} 28. Rb1 {[%clk 0:00:27]}  Rxb1 {[%clk 0:01:02]} 29. Kxb1 {[%clk 0:00:28]}  Bb4 {[%clk 0:00:54]} 30. Bb2 {[%clk 0:00:19]}  Kd5 {[%clk 0:00:52]} 31. Kc2 {[%clk 0:00:14]}  Kc4 {[%clk 0:00:52]} 32. f3 {[%clk 0:00:05]}  a4 {[%clk 0:00:50]} 33. e4 {[%clk 0:00:03]}  a3 {[%clk 0:00:40]} 34. Bc1 {[%clk 0:00:03]}  a2 {[%clk 0:00:40]} 35. Kb2 {[%clk 0:00:02]}  Ba3+ {[%clk 0:00:41]} 0-1


[Site "https://www.chess.com"]

[Event "Titled Tuesday Blitz March 15 Late 2022"]
[White "Sztokbant, Bernardo Vainzoff"]
[Black "Constantinou, Peter"]
[WhiteFideId "2115956"]
[BlackFideId "413038"]
[WhiteElo "2237"]
[BlackElo "2230"]
[Result "1-0"]
[Round "07"]
[TimeControl "180+1"]
[Date "2022.03.16"]
[WhiteClock "0:00:11"]
[BlackClock "0:00:53"]

1. e4 {[%clk 0:02:56]}  c5 {[%clk 0:02:55]} 2. Nf3 {[%clk 0:02:55]}  e6 {[%clk 0:02:55]} 3. d4 {[%clk 0:02:56]}  cxd4 {[%clk 0:02:55]} 4. Nxd4 {[%clk 0:02:56]}  Nf6 {[%clk 0:02:56]} 5. Nc3 {[%clk 0:02:57]}  Nc6 {[%clk 0:02:56]} 6. Ndb5 {[%clk 0:02:55]}  Bb4 {[%clk 0:02:56]} 7. a3 {[%clk 0:02:55]}  Bxc3+ {[%clk 0:02:56]} 8. Nxc3 {[%clk 0:02:56]}  d5 {[%clk 0:02:56]} 9. exd5 {[%clk 0:02:57]}  Nxd5 {[%clk 0:02:57]} 10. Nxd5 {[%clk 0:02:58]}  exd5 {[%clk 0:02:57]} 11. Bd3 {[%clk 0:02:57]}  Qe7+ {[%clk 0:02:58]} 12. Qe2 {[%clk 0:02:52]}  Qxe2+ {[%clk 0:02:58]} 13. Bxe2 {[%clk 0:02:52]}  Bf5 {[%clk 0:02:57]} 14. c3 {[%clk 0:02:34]}  d4 {[%clk 0:02:56]} 15. O-O {[%clk 0:02:22]}  dxc3 {[%clk 0:02:55]} 16. bxc3 {[%clk 0:02:23]}  O-O-O {[%clk 0:02:53]} 17. Be3 {[%clk 0:02:20]}  Bd3 {[%clk 0:02:51]} 18. Rfe1 {[%clk 0:01:55]}  Bxe2 {[%clk 0:02:50]} 19. Rxe2 {[%clk 0:01:56]}  Rd3 {[%clk 0:02:50]} 20. Rc1 {[%clk 0:01:56]}  Rhd8 {[%clk 0:02:50]} 21. g3 {[%clk 0:01:50]}  Na5 {[%clk 0:02:43]} 22. Bxa7 {[%clk 0:01:39]}  Nc6 {[%clk 0:02:43]} 23. Be3 {[%clk 0:01:35]}  R8d5 {[%clk 0:02:43]} 24. Kg2 {[%clk 0:01:33]}  Ra5 {[%clk 0:02:41]} 25. Ra2 {[%clk 0:01:32]}  Kd7 {[%clk 0:02:40]} 26. Kf1 {[%clk 0:01:32]}  Ne5 {[%clk 0:02:36]} 27. Ke2 {[%clk 0:01:32]}  Rad5 {[%clk 0:02:35]} 28. Bd4 {[%clk 0:01:25]}  Kd6 {[%clk 0:01:37]} 29. f4 {[%clk 0:01:18]}  R3xd4 {[%clk 0:01:35]} 30. cxd4 {[%clk 0:01:13]}  Nc6 {[%clk 0:01:35]} 31. Ke3 {[%clk 0:00:55]}  Rb5 {[%clk 0:01:34]} 32. Rc3 {[%clk 0:00:53]}  g6 {[%clk 0:01:32]} 33. a4 {[%clk 0:00:51]}  Rb4 {[%clk 0:01:31]} 34. a5 {[%clk 0:00:45]}  Ne7 {[%clk 0:01:30]} 35. Kd3 {[%clk 0:00:42]}  Nf5 {[%clk 0:01:29]} 36. Rc4 {[%clk 0:00:39]}  Rb1 {[%clk 0:01:28]} 37. g4 {[%clk 0:00:35]}  Ne7 {[%clk 0:01:20]} 38. Kc2 {[%clk 0:00:34]}  Rf1 {[%clk 0:01:15]} 39. Rb2 {[%clk 0:00:31]}  Nc6 {[%clk 0:01:10]} 40. Rxb7 {[%clk 0:00:18]}  Nxa5 {[%clk 0:01:11]} 41. Rb6+ {[%clk 0:00:17]}  Kd7 {[%clk 0:01:02]} 42. Rc5 {[%clk 0:00:17]}  Rf2+ {[%clk 0:00:58]} 43. Kc3 {[%clk 0:00:15]}  Rf3+ {[%clk 0:00:56]} 44. Kc2 {[%clk 0:00:15]}  Rf2+ {[%clk 0:00:56]} 45. Kd3 {[%clk 0:00:15]}  Rf3+ {[%clk 0:00:54]} 46. Ke4 {[%clk 0:00:13]}  Rb3 {[%clk 0:00:54]} 47. Rxb3 {[%clk 0:00:10]}  Nxb3 {[%clk 0:00:55]} 48. Rc2 {[%clk 0:00:07]}  Na5 {[%clk 0:00:53]} 49. Kd5 {[%clk 0:00:07]}  h6 {[%clk 0:00:52]} 50. g5 {[%clk 0:00:07]}  hxg5 {[%clk 0:00:51]} 51. fxg5 {[%clk 0:00:08]}  Nb3 {[%clk 0:00:50]} 52. Rc3 {[%clk 0:00:06]}  Nd2 {[%clk 0:00:48]} 53. Ra3 {[%clk 0:00:06]}  Nf3 {[%clk 0:00:46]} 54. Rxf3 {[%clk 0:00:04]}  Ke7 {[%clk 0:00:47]} 55. Rf6 {[%clk 0:00:04]}  Kf8 {[%clk 0:00:47]} 56. Ke5 {[%clk 0:00:05]}  Kg7 {[%clk 0:00:48]} 57. d5 {[%clk 0:00:06]}  Kf8 {[%clk 0:00:48]} 58. d6 {[%clk 0:00:07]}  Ke8 {[%clk 0:00:49]} 59. h3 {[%clk 0:00:08]}  Kd7 {[%clk 0:00:50]} 60. h4 {[%clk 0:00:09]}  Ke8 {[%clk 0:00:50]} 61. h5 {[%clk 0:00:09]}  gxh5 {[%clk 0:00:51]} 62. Rh6 {[%clk 0:00:10]}  f6+ {[%clk 0:00:52]} 63. Kxf6 {[%clk 0:00:11]}  h4 {[%clk 0:00:53]} 64. Rxh4 {[%clk 0:00:11]} 1-0


[Site "https://www.chess.com"]

[Event "Titled Tuesday Blitz March 15 Late 2022"]
[White "Taichman, Ori"]
[Black "Mikhalsky, Vladimir"]
[WhiteFideId "2804069"]
[BlackFideId "14144352"]
[WhiteElo "2227"]
[BlackElo "2301"]
[Result "1-0"]
[Round "07"]
[TimeControl "180+1"]
[Date "2022.03.16"]
[WhiteClock "0:01:23"]
[BlackClock "0:00:14"]

1. e4 {[%clk 0:03:00]}  c5 {[%clk 0:02:58]} 2. b3 {[%clk 0:02:58]}  Nc6 {[%clk 0:02:56]} 3. Bb2 {[%clk 0:02:59]}  e5 {[%clk 0:02:55]} 4. f4 {[%clk 0:02:59]}  d6 {[%clk 0:02:52]} 5. Nf3 {[%clk 0:02:58]}  exf4 {[%clk 0:02:47]} 6. Bb5 {[%clk 0:02:58]}  Bd7 {[%clk 0:02:37]} 7. O-O {[%clk 0:02:56]}  Nf6 {[%clk 0:02:36]} 8. Qe1 {[%clk 0:02:55]}  Be7 {[%clk 0:02:29]} 9. Bxc6 {[%clk 0:02:52]}  Bxc6 {[%clk 0:02:29]} 10. e5 {[%clk 0:02:53]}  Nh5 {[%clk 0:01:55]} 11. exd6 {[%clk 0:02:39]}  Qxd6 {[%clk 0:01:54]} 12. Na3 {[%clk 0:02:38]}  O-O-O {[%clk 0:01:44]} 13. Nc4 {[%clk 0:02:36]}  Qe6 {[%clk 0:01:44]} 14. Qf2 {[%clk 0:02:17]}  Qd5 {[%clk 0:01:28]} 15. Rae1 {[%clk 0:02:04]}  Bf6 {[%clk 0:01:28]} 16. Bxf6 {[%clk 0:02:04]}  gxf6 {[%clk 0:01:28]} 17. Na5 {[%clk 0:01:57]}  Rhg8 {[%clk 0:01:24]} 18. Nxc6 {[%clk 0:01:56]}  Qxc6 {[%clk 0:01:24]} 19. b4 {[%clk 0:01:56]}  Rd5 {[%clk 0:01:01]} 20. bxc5 {[%clk 0:01:52]}  Qxc5 {[%clk 0:01:01]} 21. d4 {[%clk 0:01:53]}  Qc3 {[%clk 0:00:53]} 22. Re7 {[%clk 0:01:46]}  Rd7 {[%clk 0:00:53]} 23. Rxd7 {[%clk 0:01:42]}  Kxd7 {[%clk 0:00:53]} 24. Qh4 {[%clk 0:01:43]}  Qe3+ {[%clk 0:00:44]} 25. Kh1 {[%clk 0:01:42]}  Qe2 {[%clk 0:00:38]} 26. Rg1 {[%clk 0:01:34]}  Rxg2 {[%clk 0:00:32]} 27. Qh3+ {[%clk 0:01:33]}  Kc7 {[%clk 0:00:18]} 28. Rxg2 {[%clk 0:01:23]}  Qd1+ {[%clk 0:00:18]} 29. Rg1 {[%clk 0:01:24]}  Qe2 {[%clk 0:00:14]} 30. Qxh5 {[%clk 0:01:23]} 1-0


[Site "https://www.chess.com"]

[Event "Titled Tuesday Blitz March 15 Late 2022"]
[White "Toncheva, Nadya"]
[Black "Cagara, Paulina"]
[WhiteFideId "2924056"]
[BlackFideId "1124870"]
[WhiteElo "1884"]
[BlackElo "1780"]
[Result "1-0"]
[Round "07"]
[TimeControl "180+1"]
[Date "2022.03.16"]
[WhiteClock "0:00:13"]
[BlackClock "0:00:01"]

1. e4 {[%clk 0:03:00]}  c6 {[%clk 0:02:59]} 2. d4 {[%clk 0:03:00]}  d5 {[%clk 0:02:59]} 3. Nc3 {[%clk 0:03:01]}  a6 {[%clk 0:02:59]} 4. a4 {[%clk 0:03:00]}  Nf6 {[%clk 0:02:56]} 5. e5 {[%clk 0:02:59]}  Nfd7 {[%clk 0:02:56]} 6. e6 {[%clk 0:03:00]}  fxe6 {[%clk 0:02:53]} 7. f4 {[%clk 0:03:00]}  Nf6 {[%clk 0:02:52]} 8. Nf3 {[%clk 0:03:00]}  g6 {[%clk 0:02:43]} 9. Ne5 {[%clk 0:02:56]}  Bg7 {[%clk 0:02:42]} 10. h4 {[%clk 0:02:55]}  Nh5 {[%clk 0:02:29]} 11. Bd3 {[%clk 0:02:54]}  O-O {[%clk 0:02:24]} 12. O-O {[%clk 0:02:49]}  Nd7 {[%clk 0:02:20]} 13. Qg4 {[%clk 0:02:48]}  Nxe5 {[%clk 0:02:14]} 14. fxe5 {[%clk 0:02:46]}  Rxf1+ {[%clk 0:02:14]} 15. Kxf1 {[%clk 0:02:45]}  Qf8+ {[%clk 0:02:13]} 16. Kg1 {[%clk 0:02:41]}  c5 {[%clk 0:02:13]} 17. Be3 {[%clk 0:02:21]}  cxd4 {[%clk 0:02:10]} 18. Rf1 {[%clk 0:02:21]}  Qxf1+ {[%clk 0:01:56]} 19. Bxf1 {[%clk 0:02:10]}  dxe3 {[%clk 0:01:55]} 20. Qg5 {[%clk 0:02:10]}  d4 {[%clk 0:01:40]} 21. Ne2 {[%clk 0:02:08]}  Bd7 {[%clk 0:01:28]} 22. Nxd4 {[%clk 0:02:05]}  Bxa4 {[%clk 0:01:23]} 23. Qxe3 {[%clk 0:02:03]}  Rc8 {[%clk 0:01:14]} 24. b3 {[%clk 0:01:59]}  Be8 {[%clk 0:01:12]} 25. g4 {[%clk 0:01:57]}  Rc5 {[%clk 0:00:59]} 26. gxh5 {[%clk 0:01:55]}  Rxe5 {[%clk 0:00:59]} 27. Qf2 {[%clk 0:01:33]}  Rxh5 {[%clk 0:00:56]} 28. Bh3 {[%clk 0:01:27]}  Bf7 {[%clk 0:00:49]} 29. Nxe6 {[%clk 0:01:24]}  Bf6 {[%clk 0:00:42]} 30. Nd8 {[%clk 0:01:15]}  Rxh4 {[%clk 0:00:38]} 31. Qf3 {[%clk 0:00:55]}  Bd4+ {[%clk 0:00:16]} 32. Kg2 {[%clk 0:00:52]}  Bf6 {[%clk 0:00:15]} 33. Nxf7 {[%clk 0:00:41]}  Kxf7 {[%clk 0:00:15]} 34. Qxb7 {[%clk 0:00:40]}  Rd4 {[%clk 0:00:14]} 35. Qxa6 {[%clk 0:00:38]}  Rd2+ {[%clk 0:00:13]} 36. Kf3 {[%clk 0:00:33]}  Rxc2 {[%clk 0:00:13]} 37. Be6+ {[%clk 0:00:33]}  Kg7 {[%clk 0:00:13]} 38. Qa8 {[%clk 0:00:33]}  Rc3+ {[%clk 0:00:12]} 39. Ke2 {[%clk 0:00:32]}  Bg5 {[%clk 0:00:11]} 40. Qg8+ {[%clk 0:00:31]}  Kh6 {[%clk 0:00:11]} 41. Qf8+ {[%clk 0:00:31]}  Kh5 {[%clk 0:00:11]} 42. Qf7 {[%clk 0:00:21]}  h6 {[%clk 0:00:09]} 43. Bf5 {[%clk 0:00:17]}  Re3+ {[%clk 0:00:08]} 44. Kd1 {[%clk 0:00:15]}  Rg3 {[%clk 0:00:01]} 45. Bxg6+ {[%clk 0:00:13]}  Kh4 {[%clk 0:00:01]} 46. Qf2 {[%clk 0:00:13]} 1-0


[Site "https://www.chess.com"]

[Event "Titled Tuesday Blitz March 15 Late 2022"]
[White "Travadon, Loic"]
[Black "Svane, Rasmus"]
[WhiteFideId "26092131"]
[BlackFideId "4657101"]
[WhiteElo "2341"]
[BlackElo "2931"]
[Result "0-1"]
[Round "07"]
[TimeControl "180+1"]
[Date "2022.03.15"]
[WhiteClock "0:01:32"]
[BlackClock "0:00:18"]

1. g3 {[%clk 0:02:57]}  d5 {[%clk 0:02:58]} 2. Bg2 {[%clk 0:02:57]}  e5 {[%clk 0:02:59]} 3. d3 {[%clk 0:02:57]}  Nf6 {[%clk 0:02:59]} 4. Nd2 {[%clk 0:02:57]}  c6 {[%clk 0:02:59]} 5. e3 {[%clk 0:02:58]}  Bd6 {[%clk 0:02:59]} 6. Ne2 {[%clk 0:02:58]}  O-O {[%clk 0:03:00]} 7. h3 {[%clk 0:02:58]}  Re8 {[%clk 0:03:00]} 8. g4 {[%clk 0:02:58]}  Be6 {[%clk 0:02:55]} 9. b3 {[%clk 0:02:57]}  a5 {[%clk 0:02:55]} 10. a3 {[%clk 0:02:56]}  Nbd7 {[%clk 0:02:54]} 11. Bb2 {[%clk 0:02:56]}  a4 {[%clk 0:02:54]} 12. b4 {[%clk 0:02:56]}  Qc7 {[%clk 0:02:53]} 13. O-O {[%clk 0:02:54]}  Nf8 {[%clk 0:02:51]} 14. f4 {[%clk 0:02:53]}  Bd7 {[%clk 0:02:39]} 15. f5 {[%clk 0:02:48]}  h6 {[%clk 0:02:35]} 16. e4 {[%clk 0:02:47]}  c5 {[%clk 0:02:32]} 17. Ng3 {[%clk 0:02:44]}  cxb4 {[%clk 0:02:31]} 18. exd5 {[%clk 0:02:44]}  bxa3 {[%clk 0:02:31]} 19. Bc1 {[%clk 0:02:45]}  Nxd5 {[%clk 0:02:23]} 20. Nc4 {[%clk 0:02:43]}  Nf4 {[%clk 0:02:21]} 21. Be4 {[%clk 0:02:36]}  Bc5+ {[%clk 0:02:16]} 22. Kh2 {[%clk 0:02:36]}  b5 {[%clk 0:02:14]} 23. Nxa3 {[%clk 0:02:34]}  Rad8 {[%clk 0:02:14]} 24. Rb1 {[%clk 0:02:32]}  b4 {[%clk 0:02:14]} 25. Nc4 {[%clk 0:02:31]}  a3 {[%clk 0:02:14]} 26. Qf3 {[%clk 0:02:30]}  Bd4 {[%clk 0:02:07]} 27. Bd2 {[%clk 0:02:26]}  a2 {[%clk 0:02:06]} 28. Ra1 {[%clk 0:02:26]}  Bxa1 {[%clk 0:02:05]} 29. Rxa1 {[%clk 0:02:27]}  b3 {[%clk 0:01:58]} 30. cxb3 {[%clk 0:02:26]}  Rb8 {[%clk 0:01:41]} 31. Rxa2 {[%clk 0:02:25]}  Rxb3 {[%clk 0:01:42]} 32. Nh5 {[%clk 0:02:24]}  Nxh5 {[%clk 0:01:36]} 33. gxh5 {[%clk 0:02:25]}  Nh7 {[%clk 0:01:35]} 34. h4 {[%clk 0:02:22]}  Nf6 {[%clk 0:01:32]} 35. Ba5 {[%clk 0:02:19]}  Qc5 {[%clk 0:01:29]} 36. Rg2 {[%clk 0:02:17]}  Kh8 {[%clk 0:01:23]} 37. Bd2 {[%clk 0:02:14]}  Bb5 {[%clk 0:01:14]} 38. Qg3 {[%clk 0:02:11]}  Rg8 {[%clk 0:00:33]} 39. Nxe5 {[%clk 0:02:09]}  Qe7 {[%clk 0:00:32]} 40. Qf4 {[%clk 0:01:57]}  Nxh5 {[%clk 0:00:30]} 41. f6 {[%clk 0:01:52]}  Nxf6 {[%clk 0:00:21]} 42. Qf5 {[%clk 0:01:45]}  Bd7 {[%clk 0:00:21]} 43. Nxd7 {[%clk 0:01:41]}  Qxd7 {[%clk 0:00:22]} 44. Qe5 {[%clk 0:01:35]}  Nxe4 {[%clk 0:00:22]} 45. Bxh6 {[%clk 0:01:35]}  f6 {[%clk 0:00:17]} 46. Qh5 {[%clk 0:01:35]}  gxh6 {[%clk 0:00:18]} 47. Rxg8+ {[%clk 0:01:31]}  Kxg8 {[%clk 0:00:18]} 48. Qg6+ {[%clk 0:01:32]}  Kf8 {[%clk 0:00:18]} 49. Qxh6+ {[%clk 0:01:33]}  Qg7 {[%clk 0:00:18]} 50. Qc1 {[%clk 0:01:32]}  Qg3+ {[%clk 0:00:17]} 51. Kh1 {[%clk 0:01:32]}  Nf2# {[%clk 0:00:18]} 0-1


[Site "https://www.chess.com"]

[Event "Titled Tuesday Blitz March 15 Late 2022"]
[White "Vifleemskaia, Svetlana"]
[Black "Sailer, Mike"]
[WhiteFideId "4129490"]
[BlackFideId "2012901"]
[WhiteElo "1901"]
[BlackElo "2109"]
[Result "0-1"]
[Round "07"]
[TimeControl "180+1"]
[Date "2022.03.16"]
[WhiteClock "0:00:46"]
[BlackClock "0:00:47"]

1. d4 {[%clk 0:02:46]}  d5 {[%clk 0:02:59]} 2. c4 {[%clk 0:02:46]}  Bf5 {[%clk 0:02:59]} 3. Nc3 {[%clk 0:02:45]}  e6 {[%clk 0:02:59]} 4. Qb3 {[%clk 0:02:43]}  Nc6 {[%clk 0:02:59]} 5. Nf3 {[%clk 0:02:42]}  Bb4 {[%clk 0:02:56]} 6. cxd5 {[%clk 0:02:41]}  exd5 {[%clk 0:02:56]} 7. Bd2 {[%clk 0:02:41]}  Nf6 {[%clk 0:02:55]} 8. e3 {[%clk 0:02:40]}  O-O {[%clk 0:02:53]} 9. Bb5 {[%clk 0:02:40]}  Bxc3 {[%clk 0:02:52]} 10. bxc3 {[%clk 0:02:38]}  Na5 {[%clk 0:02:52]} 11. Qd1 {[%clk 0:02:33]}  c6 {[%clk 0:02:52]} 12. Be2 {[%clk 0:02:32]}  b5 {[%clk 0:02:51]} 13. O-O {[%clk 0:02:31]}  Ne4 {[%clk 0:02:51]} 14. a4 {[%clk 0:02:29]}  a6 {[%clk 0:02:51]} 15. Ne5 {[%clk 0:02:24]}  Nxd2 {[%clk 0:02:43]} 16. Qxd2 {[%clk 0:02:23]}  Nb3 {[%clk 0:02:44]} 17. Qb2 {[%clk 0:02:17]}  Nxa1 {[%clk 0:02:44]} 18. Qxa1 {[%clk 0:02:09]}  Qd6 {[%clk 0:02:44]} 19. a5 {[%clk 0:02:05]}  c5 {[%clk 0:02:40]} 20. Bf3 {[%clk 0:01:55]}  f6 {[%clk 0:02:35]} 21. Ng4 {[%clk 0:01:48]}  h5 {[%clk 0:02:22]} 22. dxc5 {[%clk 0:01:46]}  Qxc5 {[%clk 0:02:11]} 23. Rd1 {[%clk 0:01:45]}  Rad8 {[%clk 0:01:46]} 24. Nh6+ {[%clk 0:01:36]}  gxh6 {[%clk 0:01:45]} 25. Bxh5 {[%clk 0:01:31]}  Rd7 {[%clk 0:01:10]} 26. Bf3 {[%clk 0:01:05]}  Rfd8 {[%clk 0:01:05]} 27. Rd4 {[%clk 0:01:04]}  Be4 {[%clk 0:01:05]} 28. Bg4 {[%clk 0:01:01]}  Rg7 {[%clk 0:01:02]} 29. Be6+ {[%clk 0:00:59]}  Kh8 {[%clk 0:00:56]} 30. Bh3 {[%clk 0:00:56]}  Bxg2 {[%clk 0:00:49]} 31. Bxg2 {[%clk 0:00:49]}  Rdg8 {[%clk 0:00:49]} 32. c4 {[%clk 0:00:46]}  Rxg2+ {[%clk 0:00:49]} 33. Kh1 {[%clk 0:00:46]}  Rg1+ {[%clk 0:00:47]} 34. Qxg1 {[%clk 0:00:46]}  Rxg1+ {[%clk 0:00:47]} 35. Kxg1 {[%clk 0:00:46]}  bxc4 {[%clk 0:00:47]} 0-1


[Site "https://www.chess.com"]